Cogmind - Beta 12 @@@ ROGUE MODE // 2023.06.14 @ 20:46:26 Player: Mr Goldstein Result: Self-destructed Performance ------------- Evolutions (3) 1500 Regions Visited (8) 1600 Robots Destroyed (6) 30 Value Destroyed (144) 144 Prototype IDs (1) 20 Alien Tech Used (0) 0 Bonus (564) 564 TOTAL SCORE: 3858 Bonus ------- Pacifist 564 Cogmind --------- Core Integrity 529/700 Matter 198/300 Energy 99/100 System Corruption 6% Temperature Cool (0) Movement Core (50) Location -7/Factory Parts ------- > --- POWER (1) -------- (None) > --- PROPULSION (5) --- Airjet > --- UTILITY (5) ------ Machine Analyzer Visual Processing Unit > --- WEAPON (2) ------- Heavy Mace > --- INVENTORY (5) ---- Medium Storage Unit Visual Processing Unit Heavy Mace Peak State ------------ > --- POWER ------------ (None) > --- PROPULSION ------- Airjet Airjet Airjet Airjet > --- UTILITY ---------- Machine Analyzer Visual Processing Unit Hacking Suite System Shield > --- WEAPON ----------- Heavy Mace > --- INVENTORY -------- Medium Storage Unit Visual Processing Unit Heavy Mace [Rating: 26] Favorites ----------- Power None Propulsion Airjet Hover Unit Airjet Utility Visual Processing Unit Device Bomb Drone Bay Processor Visual Processing Unit Hackware System Shield Protection Propulsion Shielding Weapon Heavy Mace Launcher Grenade Launcher Impact Weapon Heavy Mace Build | -11 -10 -10 -9 -9 -9 -8 -8 -7 ------- Run | Jun Mat Min Mat Min Exi Min Mat Fac Slots Evolved 6 | . . . 2 . . . 2 2 Power . | . . . . . . . . . Propulsion 3 | . . . 1 . . . 1 1 Utility 3 | . . . 1 . . . 1 1 Weapon . | . . . . . . . . . Parts Attached 16 | . . 1 1 2 . . 8 4 Power . | . . . . . . . . . Engine . | . . . . . . . . . Core . | . . . . . . . . . Reactor . | . . . . . . . . . Propulsion 5 | . . . . . . . 5 . Treads . | . . . . . . . . . Leg . | . . . . . . . . . Wheel . | . . . . . . . . . Hover 5 | . . . . . . . 5 . Flight . | . . . . . . . . . Utility 7 | . . 1 1 2 . . 2 1 Device 1 | . . . . 1 . . . . Storage . | . . . . . . . . . Processor 2 | . . . 1 . . . 1 . Hackware 2 | . . . . . . . 1 1 Protection 2 | . . 1 . 1 . . . . Artifact . | . . . . . . . . . Weapon 4 | . . . . . . . 1 3 Energy Gun . | . . . . . . . . . Energy Cannon . | . . . . . . . . . Ballistic Gun . | . . . . . . . . . Ballistic Cannon . | . . . . . . . . . Launcher 1 | . . . . . . . . 1 Special Weapon . | . . . . . . . . . Impact Weapon 3 | . . . . . . . 1 2 Slashing Weapon . | . . . . . . . . . Piercing Weapon . | . . . . . . . . . Special Melee Weapon . | . . . . . . . . . Unidentified Prototypes 1 | . . . . 1 . . . . Parts Lost 7 | . . . . . . . . 7 Power . | . . . . . . . . . Propulsion 3 | . . . . . . . . 3 Utility 3 | . . . . . . . . 3 Weapon 1 | . . . . . . . . 1 Highest Loss Streak 4 | . . . . . . . . 4 To Critical Strikes . | . . . . . . . . . Average Slot Usage (%) 32 | . . 4 22 21 22 22 34 55 Hover 8 | . . . . . . . 6 22 Processor 12 | . . . 11 11 11 11 14 15 Hackware 3 | . . . . . . . 3 9 Protection 6 | . . 4 11 10 11 11 9 1 Impact Weapon 1 | . . . . . . . . 5 Naked Turns 42 | . 27 15 . . . . . . Heaviest Build 4 | . . 1 1 1 1 1 4 4 Greatest Support 32 | 3 3 3 3 3 3 3 32 3 Greatest Overweight (x) 1 | . . . . . . . 1 1 Average Overweight (x) . | . . . . . . . . . Largest Inventory Capacity 5 | 5 5 5 5 5 5 5 5 5 Average Capacity 5 | 5 5 5 5 5 5 5 5 5 Most Carried 5 | . . . 2 3 3 4 5 5 Average Carried 2 | . . . 1 2 3 3 4 3 Final Capacity 5 | 5 5 5 5 5 5 5 5 5 Final Carried 5 | . . . 2 3 3 4 5 3 Class Distribution -------------------- 89% | Mutant 10% | Hacker-Mutant Dominant Class ---------------- Mutant | -10/Materials Mutant | -10/Mines Mutant | -9/Materials Mutant | -9/Mines Mutant | -9/Exiles Mutant | -8/Mines Mutant | -8/Materials Mutant | -7/Factory Resources | -11 -10 -10 -9 -9 -9 -8 -8 -7 ----------- Run | Jun Mat Min Mat Min Exi Min Mat Fac Matter Collected 273 | 179 . . 41 20 . . 20 13 Remotely . | . . . . . . . . . Salvage Created 108 | . . . . . . . 58 50 Parts 10 | . . . . . . . . 10 Haulers Intercepted 1 | . . . . . . . 1 . Recyclers Shooed . | . . . . . . . . . Parts Field Recycled . | . . . . . . . . . Retrieved Matter . | . . . . . . . . . Parts Self-Destructed . | . . . . . . . . . Prevented . | . . . . . . . . . Kills | -11 -10 -10 -9 -9 -9 -8 -8 -7 ------- Run | Jun Mat Min Mat Min Exi Min Mat Fac Combat Hostiles Destroyed 4 | . . . . . . . . 4 AOE 3 | . . . . . . . . 3 Classes Destroyed 4 | . . . . . . . 1 3 Worker 1 | . . . . . . . . 1 Hauler 1 | . . . . . . . 1 . Swarmer 3 | . . . . . . . . 3 Programmer 1 | . . . . . . . . 1 Best Kill Streak 4 | . . . . . . . 1 4 Combat Bots Only 3 | . . . . . . . . 3 Max Kills in Single Turn 3 | . . . . . . . 1 3 Gunslinging . | . . . . . . . . . Exploded 2 | . . . . . . . . 2 Melee . | . . . . . . . . . Uniques/NPCs Destroyed . | . . . . . . . . . Combat | -11 -10 -10 -9 -9 -9 -8 -8 -7 -------- Run | Jun Mat Min Mat Min Exi Min Mat Fac Damage Taken 916 | . 20 109 108 . . . 118 561 Core 493 | . 20 109 102 . . . 91 171 Absorbed by Shields . | . . . . . . . . . Redirected to Shielding 38 | . . . . . . . 7 31 Core Remaining (%) 76 | 100 . 48 . . . 74 83 . Volleys Fired 5 | . . . . . . . . 5 Largest 1 | . . . . . . . . 1 Hottest 30 | . . . . . . . . 30 Shots Fired 5 | . . . . . . . . 5 Gun . | . . . . . . . . . Cannon . | . . . . . . . . . Launcher 5 | . . . . . . . . 5 Special . | . . . . . . . . . Kinetic . | . . . . . . . . . Thermal . | . . . . . . . . . Explosive 5 | . . . . . . . . 5 Electromagnetic . | . . . . . . . . . Robot Hit Streak 3 | . . . . . . . . 3 Robot Miss Streak 2 | . . . . . . . . 2 Penetration Max . | . . . . . . . . . Secondary Targets . | . . . . . . . . . Shots Hit Robots 7 | . . . . . . . 1 6 Core Hits 8 | . . . . . . . . 8 Critical Kills . | . . . . . . . . . Critical Parts Destroyed 1 | . . . . . . . 1 . Critical Strikes 1 | . . . . . . . 1 . Smash 1 | . . . . . . . 1 . Melee Attacks 13 | . . . . . . . 1 12 Impact 13 | . . . . . . . 1 12 Slashing . | . . . . . . . . . Piercing . | . . . . . . . . . Sneak Attacks 2 | . . . . . . . 1 1 Combat Hostiles . | . . . . . . . . . Follow-up Attacks . | . . . . . . . . . Damage Inflicted 616 | . . . 15 . . . 94 507 Guns . | . . . . . . . . . Cannons . | . . . . . . . . . Explosions 370 | . . . . . . . . 370 Melee 231 | . . . . . . . 94 137 Ramming 15 | . . . 15 . . . . . Kinetic . | . . . . . . . . . Thermal . | . . . . . . . . . Explosive 370 | . . . . . . . . 370 Electromagnetic . | . . . . . . . . . Impact 231 | . . . . . . . 94 137 Slashing . | . . . . . . . . . Piercing . | . . . . . . . . . Highest Corruption 6 | . . . . . . . . 6 Average Corruption 2 | . . . . . . . . 2 Corruption Purged . | . . . . . . . . . Corruption Blocked . | . . . . . . . . . Effects 1 | . . . . . . . . 1 Data Loss (minor) 1 | . . . . . . . . 1 Overload Shots . | . . . . . . . . . Overflow Damage 94 | . . . . . . . 94 . Projectiles . | . . . . . . . . . Explosions . | . . . . . . . . . Melee 94 | . . . . . . . 94 . Knockbacks . | . . . . . . . . . Impact . | . . . . . . . . . Kinetic . | . . . . . . . . . Secondary . | . . . . . . . . . Self-Inflicted Damage 100 | . . . 7 . . . . 93 Shots 4 | . . . . . . . . 4 Rammed 2 | . . . 2 . . . . . Targets Rammed 2 | . . . 2 . . . . . Kicked . | . . . . . . . . . Crushed . | . . . . . . . . . Highest Temperature . | . . . . . . . . . Average Temperature . | . . . . . . . . . Received Heat Transfer 141 | . . 21 30 . . . 18 72 Siege Activations . | . . . . . . . . . Robots Corrupted . | . . . . . . . . . Combat Hostiles . | . . . . . . . . . Parts Fried 1 | . . . . . . . 1 . Impact Corruptions 3 | . . . . . . . 3 . Robots Melted . | . . . . . . . . . Combat Hostiles . | . . . . . . . . . Parts Melted . | . . . . . . . . . Heat Transferred . | . . . . . . . . . Parts Sabotaged . | . . . . . . . . . Parts Stolen . | . . . . . . . . . Parts Stripped . | . . . . . . . . . Power Chain Reactions . | . . . . . . . . . Missiles Intercepted . | . . . . . . . . . Alert | -11 -10 -10 -9 -9 -9 -8 -8 -7 ------- Run | Jun Mat Min Mat Min Exi Min Mat Fac Peak Influence 223 | . 30 11 100 39 . . 91 223 Initial 47 | . . 11 3 39 . . . 47 Average 67 | . 6 11 36 39 . . 48 139 Maximum Alert Level 1 | . . . . . . . . 1 Low Security (%) 94 | 100 100 100 100 100 . 100 100 85 Level 1 5 | . . . . . . . . 14 Level 2 . | . . . . . . . . . Level 3 . | . . . . . . . . . Level 4 . | . . . . . . . . . Level 5 . | . . . . . . . . . High Security . | . . . . . . . . . Max Security . | . . . . . . . . . Squads Dispatched 5 | . . . 1 . . . . 4 Investigation 3 | . . . . . . . . 3 Extermination . | . . . . . . . . . Reinforcement 2 | . . . 1 . . . . 1 Assault . | . . . . . . . . . Garrison . | . . . . . . . . . Intercept . | . . . . . . . . . Searches Triggered . | . . . . . . . . . Construction Impeded . | . . . . . . . . . Haulers Reinforced 1 | . . . . . . . . 1 Active Scanning Responses . | . . . . . . . . . Cargo Convoy Interrupts . | . . . . . . . . . Stealth | -11 -10 -10 -9 -9 -9 -8 -8 -7 --------- Run | Jun Mat Min Mat Min Exi Min Mat Fac Distress Signals 3 | . 2 . 1 . . . . . Communications Jammed . | . . . . . . . . . Distress Signals . | . . . . . . . . . Times Spotted 42 | . 6 5 8 2 . . 6 15 Peak Tracking Total 7 | . 7 5 7 2 . . 3 5 Tactical Retreats 5 | . . . 1 . . . 1 3 Traps | -11 -10 -10 -9 -9 -9 -8 -8 -7 ------- Run | Jun Mat Min Mat Min Exi Min Mat Fac Traps Triggered 1 | . . . . . . . . 1 Indirectly . | . . . . . . . . . Trap Hack Attempts . | . . . . . . . . . Triggered . | . . . . . . . . . Disarmed . | . . . . . . . . . Reprogrammed . | . . . . . . . . . Reused . | . . . . . . . . . Traps Extracted . | . . . . . . . . . Installed . | . . . . . . . . . Triggered . | . . . . . . . . . Machines | -11 -10 -10 -9 -9 -9 -8 -8 -7 ---------- Run | Jun Mat Min Mat Min Exi Min Mat Fac Machines Disabled . | . . . . . . . . . Max in Single Turn . | . . . . . . . . . Machines Repaired . | . . . . . . . . . Machines Sabotaged . | . . . . . . . . . Overloaded Fab Kills . | . . . . . . . . . Hacking | -11 -10 -10 -9 -9 -9 -8 -8 -7 --------- Run | Jun Mat Min Mat Min Exi Min Mat Fac Machines Accessed 8 | . 1 . 1 1 1 . 1 3 Terminals 6 | . 1 . 1 . . . 1 3 Fabricators . | . . . . . . . . . Repair Stations . | . . . . . . . . . Recycling Units . | . . . . . . . . . Scanalyzers . | . . . . . . . . . Garrison Access . | . . . . . . . . . Total Hacks 15 | . 2 . 2 1 1 . 1 8 Successful 6 | . 1 . 1 1 1 . 1 1 Failed 9 | . 1 . 1 . . . . 7 Catastrophic 5 | . 1 . 1 . . . . 3 Database Lockouts . | . . . . . . . . . Manual 5 | . 2 . 2 . . . 1 . Terminals 13 | . 2 . 2 . . . 1 8 Fabricators . | . . . . . . . . . Repair Stations . | . . . . . . . . . Recycling Units . | . . . . . . . . . Scanalyzers . | . . . . . . . . . Garrison Access . | . . . . . . . . . Terminal Hacks 6 | . 1 . 1 1 1 . 1 1 Record 1 | . . . . . 1 . . . Open Door 1 | . . . . 1 . . . . Level Access Points 1 | . . . . . . . 1 . Branch Access Points 2 | . 1 . 1 . . . . . Zone Layout 1 | . . . . . . . . 1 Fabricator Hacks . | . . . . . . . . . Repair Station Hacks . | . . . . . . . . . Recycling Unit Hacks . | . . . . . . . . . Scanalyzer . | . . . . . . . . . Garrison Access Hacks . | . . . . . . . . . Unauthorized Hacks . | . . . . . . . . . Terminals . | . . . . . . . . . Fabricators . | . . . . . . . . . Repair Stations . | . . . . . . . . . Recycling Units . | . . . . . . . . . Scanalyzers . | . . . . . . . . . Garrison Access . | . . . . . . . . . Data Cores Recovered . | . . . . . . . . . Used . | . . . . . . . . . Hacking Detections 4 | . 1 . . . . . . 3 Full Trace Events 3 | . . . . . . . . 3 Feedback Events . | . . . . . . . . . Feedback Blocked . | . . . . . . . . . Robot Schematics Acquired . | . . . . . . . . . Robots Built . | . . . . . . . . . Authchips . | . . . . . . . . . Time . | . . . . . . . . . Total Robot Build Rating . | . . . . . . . . . Part Schematics Acquired . | . . . . . . . . . Parts Built . | . . . . . . . . . Authchips . | . . . . . . . . . Time . | . . . . . . . . . Total Part Build Rating . | . . . . . . . . . Parts Repaired . | . . . . . . . . . Time . | . . . . . . . . . Parts Recycled . | . . . . . . . . . Recycled Matter . | . . . . . . . . . Retrieved Matter . | . . . . . . . . . Retrieved Components . | . . . . . . . . . Parts Scanalyzed . | . . . . . . . . . Part Schematics Acquired . | . . . . . . . . . Parts Damaged . | . . . . . . . . . Bothacking | -11 -10 -10 -9 -9 -9 -8 -8 -7 ------------ Run | Jun Mat Min Mat Min Exi Min Mat Fac Used RIF Installer . | . . . . . . . . . Robots Hacked . | . . . . . . . . . Non-combat . | . . . . . . . . . Combat . | . . . . . . . . . Robot Hacks Applied . | . . . . . . . . . Relay Couplers Released . | . . . . . . . . . Fabnet Peak Effective % . | . . . . . . . . . Robots Rewired . | . . . . . . . . . Allies Hacked . | . . . . . . . . . Hacks Repelled . | . . . . . . . . . Allies | -11 -10 -10 -9 -9 -9 -8 -8 -7 -------- Run | Jun Mat Min Mat Min Exi Min Mat Fac Total Allies . | . . . . . . . . . Largest Group . | . . . . . . . . . Highest-Rated Group . | . . . . . . . . . Highest-Rated Ally . | . . . . . . . . . Total Orders . | . . . . . . . . . Ally Attacks . | . . . . . . . . . Total Damage . | . . . . . . . . . Kills . | . . . . . . . . . Allies Corrupted . | . . . . . . . . . Allies Melted . | . . . . . . . . . Intel | -11 -10 -10 -9 -9 -9 -8 -8 -7 ------- Run | Jun Mat Min Mat Min Exi Min Mat Fac Robot Analysis Total . | . . . . . . . . . Derelict Logs Recovered 2 | . . . . 2 . . . . Drone Launches . | . . . . . . . . . Drone Recoveries . | . . . . . . . . . Exploration | -11 -10 -10 -9 -9 -9 -8 -8 -7 ------------- Run | Jun Mat Min Mat Min Exi Min Mat Fac Turns Passed 726 | 11 27 23 83 124 63 65 101 229 Spaces Moved 1235 | 21 53 43 155 237 126 128 170 302 Core 1231 | 21 53 43 155 237 126 128 166 302 Treads . | . . . . . . . . . Legs . | . . . . . . . . . Wheels . | . . . . . . . . . Hover 4 | . . . . . . . 4 . Flight . | . . . . . . . . . Fastest Speed 48 | 50 50 50 50 50 50 50 48 50 Average Speed 50 | 50 50 50 50 50 50 50 50 50 Slowest Speed 100 | 50 50 50 50 50 50 50 100 100 Overloaded Moves . | . . . . . . . . . Propulsion Burnouts . | . . . . . . . . . Robots Hopped . | . . . . . . . . . Cave-ins Triggered 2 | . . . . . . . . 2 Exploration Rate (%) 24 | 3 17 14 26 33 51 42 21 14 Regions Visited 8 Branch Regions 4 Pre-discovered Areas 2 | . . . . 1 1 . . . Known Exits Taken 3 | . 1 . 1 . . . 1 . Unknown Exits Taken 5 | 1 . 1 . 1 1 1 . . Scrap Searched 3 | . . 1 . 1 . 1 . . Spaces Dug 9 | . . . . . . . . 9 Terrain Destroyed 23 | . . . . . . . . 23 Melee 9 | . . . . . . . . 9 Projectile . | . . . . . . . . . AOE 14 | . . . . . . . . 14 Terrain Rammed . | . . . . . . . . . Walls Destroyed . | . . . . . . . . . Machines Disabled . | . . . . . . . . . Actions | -11 -10 -10 -9 -9 -9 -8 -8 -7 --------- Run | Jun Mat Min Mat Min Exi Min Mat Fac Total 1301 | 20 52 43 159 241 125 128 181 352 Wait 28 | . . . . . . . . 28 Move 1225 | 20 52 42 154 236 125 127 169 300 Hop . | . . . . . . . . . Pick Up 6 | . . . 2 1 . 1 1 1 Fast Attach 11 | . . 1 1 2 . . 6 1 Attach 4 | . . . . . . . 1 3 Detach 1 | . . . . . . . 1 . Swap 1 | . . . . . . . 1 . Drop 3 | . . . . 2 . . 1 . Fire 5 | . . . . . . . . 5 Melee 13 | . . . . . . . 1 12 Ram 2 | . . . 2 . . . . . Kick . | . . . . . . . . . Crush . | . . . . . . . . . Escape Stasis 2 | . . . . . . . . 2 Rewire . | . . . . . . . . . Trap . | . . . . . . . . . Miscellaneous . | . . . . . . . . . Route ------- -11/Junkyard -10/Materials -10/Mines -9/Materials (discovered 2 exits: *Min x2) -9/Mines (discovered 2 exits: *Mat / *Exi) -9/Exiles (discovered 2 exits: [*Min x2]) -8/Mines -8/Materials (discovered 3 exits: *Fac x3) -7/Factory (discovered 1 exit: [*Low]) History --------- Turn | Location | Event 4 | -11/Junkyard | Discovered new exit (range 15) 12 | -11/Junkyard | Entered Materials 16 | -10/Materials | Identified exit to Mines 39 | -10/Materials | Entered Mines 60 | -10/Mines | Discovered new exit (range 5) 62 | -10/Mines | Entered Materials 62 | -9/Materials | Evolved 2 slots: Propulsion x1, Utility x1 138 | -9/Materials | Discovered new exit (range 14) 139 | -9/Materials | Identified exit to Mines 145 | -9/Materials | Entered Mines 148 | -9/Mines | YI-UF0 nonchalantly dropped a Grenade Launcher on the ground 163 | -9/Mines | Found the Drone Emporium 164 | -9/Mines | Learned Materials stockpile data 167 | -9/Mines | Found Prototype Device 167 | -9/Mines | Identified Bomb Drone Bay 209 | -9/Mines | Discovered new exit (range 5) 211 | -9/Mines | Learned location of Storage (-7) 266 | -9/Mines | Deemed a non-threat by the Exiles lab entrance 266 | -9/Mines | Discovered new exit (range 5) 269 | -9/Mines | Entered Exiles 277 | -9/Exiles | Discovered new exit (range 17) 282 | -9/Exiles | Met 8R-AWN 290 | -9/Exiles | Met EX-HEX 305 | -9/Exiles | Build established: Mutant 309 | -9/Exiles | Met EX-DEC 312 | -9/Exiles | Learned location of Zion (-6) 327 | -9/Exiles | Discovered new exit (range 12) 332 | -9/Exiles | Entered Mines 395 | -8/Mines | Discovered new exit (range 5) 397 | -8/Mines | Entered Materials 397 | -8/Materials | Evolved 2 slots: Propulsion x1, Utility x1 446 | -8/Materials | Identified exit to Factory 498 | -8/Materials | Entered Factory 498 | -7/Factory | Evolved 2 slots: Propulsion x1, Utility x1 574 | -7/Factory | Discovered new exit (range 5) 663 | -7/Factory | Crushed by falling debris 694 | -7/Factory | Lost 4 parts (3n1u) 712 | -7/Factory | Crushed by falling debris 727 | -7/Factory | Self-destructed Last Messages --------------- 00663_ The unstable cave ceiling collapses. 00663_ Crushed by falling debris. 00663_ Hacking Suite destroyed. 00663_ System corrupted by crushing effect (+2). 00669_ The unstable cave ceiling collapses. 00669_ P-60 Hacker crushed by falling debris. 00669_ P-60 Hacker destroyed. 00700_ The unstable cave ceiling collapses. 00712_ Crushed by falling debris. 00712_ System Shield destroyed. 00712_ System corrupted by crushing effect (+4). 00713_ System corrupted: Component data lost. 00715_ Connecting with Terminal... 00715_ ALERT: Suspicious activity at Terminal F007. Dispatching Investigation squad. 00717_ Triggered Blade Trap. 00717_ Massive razor-sharp blades shoot up from within the floor. 00717_ Hvy. Mace severed. 00717_ O-24 Administrator: "IFF HANDSHAKE FAILED. SECURING TERMINAL." 00719_ Acquired Hvy. Mace. Map ----- +----------------------------------------------------+ | ?????????????????????????????????????????????????? | | ?????????????????????????????????????????????????? | | ?????????????????????????????????????????????????? | | ?????????????????????????????????????????????????? | | ?????????????????????????????????????????????????? | | ????????????????????????????????????""""?????????? | | ????????????????????????????????????""""?????????? | | ????????????????????????????????????""""?????????? | | ????????????????????????????????????""""?????????? | | ????????????????????????????????????""""?????????? | | ????????????????????????????????????""""?????????? | | ?????????????????????????## ?????????????????????? | | ????????????????????????? !?????????????????????? | | ?????????????????????# ?????????????????????? | | ?????????????????????# """ """???????????????????? | | ?????????????????????# """ """???????????????????? | | ?????????????????????# """ """???????????????????? | | ?????????????????????# #?????????????????? | | ?????????????????????#![ """k#?????????????????? | | ?????????????????????#*[ """ #?????????????????? | | ????????????""""?????#* """k#?????????????????? | | ???????????""S""?????# #?????????????????? | | ???????????""?""?????# """ """ #?????????????????? | | ?????????????????????# """ """ #?????????????????? | | ??????"""""""""??????# """ """ #?????????????????? | | ?????????????????????# @ #?????????????????? | | ?????????????????????# #?????????????????? | | ??####+####??????????# #??""""???????????? | | ??# #################+####??""""???????????? | | ### #??""""???????????? | | #??""""???????????? | | +??""""???????????? | | #??""""???????????? | | ### #?????????????????? | | #?# ##########+###########??""""???????????? | | #?### ###?#### #????????""""???????????? | | #???# #?? # #????????""""???????????? | | #???# #?? # #????????""""???????????? | | #???# #?!= # """ """ #????????""""???????????? | | #???# #?!] # """ """ #????????""""???????????? | | #???# # =] # """ """ #???????????????????????? | | #???# # | # #???????????????????????? | | #???# + # """T""" #???????????????????????? | | #???# # ###"#######???????????????????????? | | #???# # #### #????????????????????????????? | | ????# #?""" #### #????????????????????????????? | | ##### #?""" ### ##????????????????????????????? | | / #?""" #####?????????????????????????????? | | # #?? #####?????????????????????????????? | | " # ##########"#?????????????????????????????? | +----------------------------------------------------+ Best States ------------- Heat Dissipation 34 Energy Generation 5 Energy Capacity 100 Matter Stores 300 Matter Capacity 300 Sight Range 18 Terrain Scan Density 10 Propulsion Shielding 33 Evasion (%) 50 Offensive Hacking 10 Defensive Hacking 10 Item Schematics ----------------- None Robot Schematics ------------------ None Fabricated ------------ Nothing Alien Tech Used ----------------- None Achievements -------------- None Challenges ------------ None Game ------ Seed EnergyDisposableStripper Manual? 0 Play Time 00:09:43 Cumulative 297.7 hours Start 2023.06.14 @ 20:39:06 End 2023.06.14 @ 20:46:26 Sessions 1 Manual Loads 0 Difficulty Rogue Special Mode None Game No. 854 Rogue 854 Adventurer 0 Explorer 0 Win Type - Total 22 Types 8/0/10/2/0/0/2/0/0 Lore% 92 Gallery% 89 Achievement% 82 Wizard Run 0 Options --------- ASCII 0 Keyboard 0 Movement Numpad Keybinds 0 Fullscreen 1 Font 16/SmallcapsGlow Map View 75x55 Tactical HUD 1 Map Filters NONE Filters NONE Steam 1 RUN: 1ee27dc0-1400-49c0-9127-0ad56064ee67